[Event "NJSK 2024 A"]
[Site "Groningen, Netherlands"]
[Date "2024.05.01"]
[Round "5.7"]
[White "Wiersma, Camiel"]
[Black "Van de Poel, Jona"]
[Result "1/2-1/2"]
[TimeControl "90min/40moves + 30min + 30sec/move"]
[WhiteElo "1963"]
[BlackElo "1865"]

1. e4 {[%clk 01:30:47]} {[%emt 00:00:13]} c5 {[%clk 01:29:09]} {[%emt
00:01:51]} 2. Nf3 {[%clk 01:31:11]} {[%emt 00:00:05]} e6 {[%clk 01:29:23]}
{[%emt 00:00:17]} 3. d4 {[%clk 01:31:34]} {[%emt 00:00:07]} cxd4 {[%clk
01:29:49]} {[%emt 00:00:04]} 4. Nxd4 {[%clk 01:31:56]} {[%emt 00:00:07]} Nc6
{[%clk 01:28:36]} {[%emt 00:01:44]} 5. Nc3 {[%clk 01:32:04]} {[%emt 00:00:22]}
Nf6 {[%clk 01:28:45]} {[%emt 00:00:21]} 6. Ndb5 {[%clk 01:30:53]} {[%emt
00:01:40]} Bb4 {[%clk 01:28:44]} {[%emt 00:00:31]} 7. a3 {[%clk 01:31:18]}
{[%emt 00:00:06]} Bxc3+ {[%clk 01:29:10]} {[%emt 00:00:04]} 8. Nxc3 {[%clk
01:31:44]} {[%emt 00:00:04]} d5 {[%clk 01:29:30]} {[%emt 00:00:10]} 9. exd5
{[%clk 01:31:50]} {[%emt 00:00:23]} exd5 {[%clk 01:29:48]} {[%emt 00:00:12]} 10.
Bf4 {[%clk 01:18:58]} {[%emt 00:13:22]} O-O {[%clk 01:27:38]} {[%emt 00:02:41]}
11. Be2 {[%clk 01:08:13]} {[%emt 00:11:14]} a6 {[%clk 01:19:11]} {[%emt
00:08:58]} 12. O-O {[%clk 00:56:46]} {[%emt 00:11:57]} d4 {[%clk 01:17:54]}
{[%emt 00:01:47]} 13. Na4 {[%clk 00:48:18]} {[%emt 00:08:59]} Bf5 {[%clk
01:07:37]} {[%emt 00:10:42]} 14. Nc5 {[%clk 00:46:55]} {[%emt 00:01:56]} Qb6
{[%clk 01:04:26]} {[%emt 00:03:41]} 15. Nd3 {[%clk 00:43:23]} {[%emt 00:04:02]}
Rfe8 {[%clk 01:01:07]} {[%emt 00:03:50]} 16. Bf3 {[%clk 00:36:58]} {[%emt
00:06:55]} Bxd3 {[%clk 00:53:19]} {[%emt 00:08:17]} 17. Qxd3 {[%clk 00:35:30]}
{[%emt 00:01:59]} Ne5 {[%clk 00:52:13]} {[%emt 00:01:36]} 18. Bxe5 {[%clk
00:33:48]} {[%emt 00:02:11]} Rxe5 {[%clk 00:51:54]} {[%emt 00:00:50]} 19. Rfd1
{[%clk 00:26:59]} {[%emt 00:07:18]} h6 {[%clk 00:45:40]} {[%emt 00:06:44]} 20.
g3 {[%clk 00:26:23]} {[%emt 00:01:06]} Rb5 {[%clk 00:40:36]} {[%emt 00:05:35]}
21. Qxd4 {[%clk 00:15:35]} {[%emt 00:11:18]} Qxd4 {[%clk 00:36:43]} {[%emt
00:04:22]} 22. Rxd4 {[%clk 00:16:03]} {[%emt 00:00:02]} Rxb2 {[%clk 00:34:37]}
{[%emt 00:02:36]} 23. Rb4 {[%clk 00:14:11]} {[%emt 00:02:22]} Rxc2 {[%clk
00:33:54]} {[%emt 00:01:13]} 24. Rxb7 {[%clk 00:14:11]} {[%emt 00:00:30]} Rd8
{[%clk 00:32:33]} {[%emt 00:01:52]} 25. Rb6 {[%clk 00:12:21]} {[%emt 00:02:20]}
Rdd2 {[%clk 00:29:27]} {[%emt 00:03:35]} 26. Rf1 {[%clk 00:10:45]} {[%emt
00:02:05]} a5 {[%clk 00:27:15]} {[%emt 00:02:44]} 27. Rb3 {[%clk 00:05:54]}
{[%emt 00:05:21]} g6 {[%clk 00:27:06]} {[%emt 00:00:38]} 28. h3 {[%clk
00:06:03]} {[%emt 00:00:21]} Nd7 {[%clk 00:26:33]} {[%emt 00:01:02]} 29. Be4
{[%clk 00:03:40]} {[%emt 00:02:54]} Rc4 {[%clk 00:22:05]} {[%emt 00:04:55]} 30.
Bb1 {[%clk 00:03:14]} {[%emt 00:00:59]} Rc5 {[%clk 00:21:08]} {[%emt 00:01:27]}
31. Re1 {[%clk 00:02:22]} {[%emt 00:01:22]} Nf6 {[%clk 00:16:50]} {[%emt
00:04:48]} 32. Kg2 {[%clk 00:02:12]} {[%emt 00:00:40]} Rd7 {[%clk 00:16:36]}
{[%emt 00:00:45]} 33. Kf3 {[%clk 00:01:14]} {[%emt 00:01:28]} Kg7 {[%clk
00:16:45]} {[%emt 00:00:20]} 34. Ba2 {[%clk 00:00:57]} {[%emt 00:00:48]} Rf5+
{[%clk 00:16:29]} {[%emt 00:00:46]} 35. Ke2 {[%clk 00:00:39]} {[%emt 00:00:48]}
Ne4 {[%clk 00:05:49]} {[%emt 00:11:09]} 36. Bb1 {[%clk 00:01:08]} {[%emt
00:00:02]} Rxf2+ {[%clk 00:04:16]} {[%emt 00:02:02]} 37. Ke3 {[%clk 00:01:31]}
{[%emt 00:00:08]} Nd2 {[%clk 00:04:28]} {[%emt 00:00:18]} 38. Kxf2 {[%clk
00:00:33]} {[%emt 00:01:28]} Nxb3 {[%clk 00:04:41]} {[%emt 00:00:16]} 39. Re3
{[%clk 00:00:51]} {[%emt 00:00:12]} Nd4 {[%clk 00:03:04]} {[%emt 00:02:07]} 40.
Rd3 {[%clk 00:00:44]} {[%emt 00:00:37]} Rb7 {[%clk 00:02:35]} {[%emt 00:00:59]}
41. Rxd4 {[%clk 00:00:32]} {[%emt 00:00:42]} Rxb1 {[%clk 00:02:58]} {[%emt
00:00:08]} 42. Ra4 {[%clk 00:29:42]} {[%emt 00:01:20]} Rb5 {[%clk 00:32:38]}
{[%emt 00:00:50]} 43. Kf3 {[%clk 00:27:40]} {[%emt 00:02:30]} h5 {[%clk
00:31:22]} {[%emt 00:01:47]} 44. h4 {[%clk 00:26:13]} {[%emt 00:01:58]} Kf6
{[%clk 00:30:11]} {[%emt 00:01:41]} 45. Kg2 {[%clk 00:25:37]} {[%emt 00:01:05]}
Ke6 {[%clk 00:29:48]} {[%emt 00:00:54]} 46. Re4+ {[%clk 00:24:54]} {[%emt
00:01:13]} Re5 {[%clk 00:29:56]} {[%emt 00:00:22]} 47. Ra4 {[%clk 00:25:15]}
{[%emt 00:00:08]} Kd6 {[%clk 00:30:02]} {[%emt 00:00:25]} 48. Rf4 {[%clk
00:24:40]} {[%emt 00:01:04]} Ke6 {[%clk 00:29:31]} {[%emt 00:01:01]} 49. Ra4
{[%clk 00:24:46]} {[%emt 00:00:24]} Rf5 {[%clk 00:29:57]} {[%emt 00:00:05]} 50.
Rd4 {[%clk 00:22:01]} {[%emt 00:03:15]} Ke5 {[%clk 00:29:05]} {[%emt 00:01:22]}
51. Rd8 {[%clk 00:18:40]} {[%emt 00:03:49]} Ke4 {[%clk 00:29:12]} {[%emt
00:00:23]} 52. Rd7 {[%clk 00:17:36]} {[%emt 00:01:34]} Ke3 {[%clk 00:28:40]}
{[%emt 00:01:03]} 53. Rd6 {[%clk 00:14:39]} {[%emt 00:03:26]} Rf2+ {[%clk
00:27:37]} {[%emt 00:01:32]} 54. Kh3 {[%clk 00:14:20]} {[%emt 00:00:50]} Ke4
{[%clk 00:16:13]} {[%emt 00:11:54]} 55. Ra6 {[%clk 00:12:50]} {[%emt 00:02:00]}
Rf5 {[%clk 00:16:07]} {[%emt 00:00:36]} 56. Rd6 {[%clk 00:12:08]} {[%emt
00:01:12]} Rd5 {[%clk 00:13:49]} {[%emt 00:02:49]} 57. Rf6 {[%clk 00:12:06]}
{[%emt 00:00:32]} Rf5 {[%clk 00:11:33]} {[%emt 00:02:45]} 58. Rd6 {[%clk
00:12:24]} {[%emt 00:00:12]} Rf3 {[%clk 00:11:43]} {[%emt 00:00:20]} 59. Rd7
{[%clk 00:11:43]} {[%emt 00:01:12]} Rxa3 {[%clk 00:10:15]} {[%emt 00:01:58]} 60.
Rxf7 {[%clk 00:12:05]} {[%emt 00:00:08]} Ke5 {[%clk 00:09:57]} {[%emt
00:00:47]} 61. Ra7 {[%clk 00:11:23]} {[%emt 00:01:12]} a4 {[%clk 00:10:01]}
{[%emt 00:00:26]} 62. Ra5+ {[%clk 00:11:07]} {[%emt 00:00:46]} Ke4 {[%clk
00:08:39]} {[%emt 00:01:52]} 63. Rg5 {[%clk 00:10:54]} {[%emt 00:00:43]} Ra1
{[%clk 00:05:51]} {[%emt 00:03:18]} 64. Rxg6 {[%clk 00:10:43]} {[%emt
00:00:41]} a3 {[%clk 00:05:53]} {[%emt 00:00:28]} 65. Re6+ {[%clk 00:10:05]}
{[%emt 00:01:08]} Kd3 {[%clk 00:04:04]} {[%emt 00:02:19]} 66. Ra6 {[%clk
00:04:02]} {[%emt 00:06:32]} Kc3 {[%clk 00:03:58]} {[%emt 00:00:36]} 67. g4
{[%clk 00:02:03]} {[%emt 00:02:30]} hxg4 {[%clk 00:03:51]} {[%emt 00:00:36]} 68.
Kxg4 {[%clk 00:02:15]} {[%emt 00:00:18]} a2 {[%clk 00:01:21]} {[%emt 00:03:00]}
69. Kh5 {[%clk 00:01:43]} {[%emt 00:01:02]} Kd4 {[%clk 00:01:10]} {[%emt
00:00:41]} 70. Kh6 {[%clk 00:01:50]} {[%emt 00:00:23]} 1/2-1/2

[Event "NJSK 2024 A"]
[Site "Groningen, Netherlands"]
[Date "2024.05.02"]
[Round "6.1"]
[White "Snijders, Take"]
[Black "Slagboom, Leandro"]
[Result "0-1"]
[TimeControl "90min/40moves + 30min + 30sec/move"]
[WhiteElo "2090"]
[BlackElo "2326"]

1. e4 {[%clk 01:30:57]} {[%emt 00:00:03]} e6 {[%clk 01:30:47]} {[%emt
00:00:13]} 2. d4 {[%clk 01:31:21]} {[%emt 00:00:06]} d5 {[%clk 01:31:13]}
{[%emt 00:00:04]} 3. Nc3 {[%clk 01:31:44]} {[%emt 00:00:07]} Nf6 {[%clk
01:31:07]} {[%emt 00:00:36]} 4. e5 {[%clk 01:31:23]} {[%emt 00:00:52]} Nfd7
{[%clk 01:31:31]} {[%emt 00:00:05]} 5. f4 {[%clk 01:31:21]} {[%emt 00:00:32]}
c5 {[%clk 01:31:56]} {[%emt 00:00:05]} 6. Nf3 {[%clk 01:31:13]} {[%emt
00:00:38]} Nc6 {[%clk 01:32:20]} {[%emt 00:00:06]} 7. Be3 {[%clk 01:30:40]}
{[%emt 00:01:03]} Be7 {[%clk 01:32:14]} {[%emt 00:00:36]} 8. Qd2 {[%clk
01:28:04]} {[%emt 00:03:06]} a6 {[%clk 01:31:37]} {[%emt 00:01:07]} 9. dxc5
{[%clk 01:22:10]} {[%emt 00:06:23]} Nxc5 {[%clk 01:31:56]} {[%emt 00:00:12]} 10.
O-O-O {[%clk 01:16:13]} {[%emt 00:06:28]} Qa5 {[%clk 01:32:00]} {[%emt
00:00:25]} 11. Kb1 {[%clk 01:09:25]} {[%emt 00:07:19]} b5 {[%clk 01:32:00]}
{[%emt 00:00:29]} 12. Bxc5 {[%clk 01:06:15]} {[%emt 00:03:40]} Bxc5 {[%clk
01:32:13]} {[%emt 00:00:17]} 13. Ne2 {[%clk 01:05:18]} {[%emt 00:01:27]} Qb6
{[%clk 01:24:38]} {[%emt 00:08:04]} 14. Ned4 {[%clk 01:03:28]} {[%emt
00:02:21]} Nxd4 {[%clk 01:22:31]} {[%emt 00:02:38]} 15. Nxd4 {[%clk 01:03:44]}
{[%emt 00:00:14]} Bd7 {[%clk 01:22:38]} {[%emt 00:00:22]} 16. Be2 {[%clk
00:57:09]} {[%emt 00:07:05]} O-O {[%clk 01:20:30]} {[%emt 00:02:38]} 17. Rhf1
{[%clk 00:50:19]} {[%emt 00:07:20]} Rfe8 {[%clk 01:14:20]} {[%emt 00:06:40]} 18.
h4 {[%clk 00:43:36]} {[%emt 00:07:13]} b4 {[%clk 01:08:06]} {[%emt 00:06:44]}
19. h5 {[%clk 00:39:57]} {[%emt 00:04:09]} a5 {[%clk 01:04:39]} {[%emt
00:03:57]} 20. h6 {[%clk 00:36:34]} {[%emt 00:03:53]} g6 {[%clk 01:04:21]}
{[%emt 00:00:48]} 21. g4 {[%clk 00:33:02]} {[%emt 00:04:02]} a4 {[%clk
01:03:57]} {[%emt 00:00:54]} 22. Rf3 {[%clk 00:26:18]} {[%emt 00:07:14]} Qc7
{[%clk 00:47:10]} {[%emt 00:17:17]} 23. Rc1 {[%clk 00:21:08]} {[%emt 00:05:39]}
Reb8 {[%clk 00:43:57]} {[%emt 00:03:44]} 24. Re3 {[%clk 00:19:26]} {[%emt
00:02:12]} Qb6 {[%clk 00:38:24]} {[%emt 00:06:02]} 25. Rd1 {[%clk 00:17:31]}
{[%emt 00:02:25]} Qa7 {[%clk 00:33:04]} {[%emt 00:05:51]} 26. c4 {[%clk
00:12:14]} {[%emt 00:05:47]} bxc3 {[%clk 00:32:03]} {[%emt 00:01:31]} 27. Qxc3
{[%clk 00:10:52]} {[%emt 00:01:53]} Rb4 {[%clk 00:30:03]} {[%emt 00:02:29]} 28.
Red3 {[%clk 00:08:56]} {[%emt 00:02:26]} Rab8 {[%clk 00:26:45]} {[%emt
00:03:48]} 29. R3d2 {[%clk 00:04:47]} {[%emt 00:04:39]} Bf8 {[%clk 00:20:16]}
{[%emt 00:06:59]} 30. g5 {[%clk 00:04:16]} {[%emt 00:01:01]} Rc8 {[%clk
00:19:21]} {[%emt 00:01:26]} 31. Qd3 {[%clk 00:03:34]} {[%emt 00:01:12]} Rcc4
{[%clk 00:15:10]} {[%emt 00:04:40]} 32. Nc2 {[%clk 00:03:21]} {[%emt 00:00:43]}
Rb7 {[%clk 00:13:05]} {[%emt 00:02:35]} 33. Qf3 {[%clk 00:03:14]} {[%emt
00:00:38]} Qb6 {[%clk 00:12:38]} {[%emt 00:00:57]} 34. Na1 {[%clk 00:02:54]}
{[%emt 00:00:49]} Rb4 {[%clk 00:12:27]} {[%emt 00:00:41]} 35. b3 {[%clk
00:03:01]} {[%emt 00:00:23]} axb3 {[%clk 00:11:52]} {[%emt 00:01:05]} 36. Nxb3
{[%clk 00:03:28]} {[%emt 00:00:03]} Bc5 {[%clk 00:09:15]} {[%emt 00:03:07]} 37.
Rd3 {[%clk 00:02:41]} {[%emt 00:01:18]} d4 {[%clk 00:07:36]} {[%emt 00:02:09]}
38. Rc1 {[%clk 00:02:12]} {[%emt 00:00:58]} Bc6 {[%clk 00:07:08]} {[%emt
00:00:58]} 39. Qf1 {[%clk 00:01:09]} {[%emt 00:01:33]} Be4 {[%clk 00:07:12]}
{[%emt 00:00:26]} 40. Ka1 {[%clk 00:00:50]} {[%emt 00:00:49]} Bxd3 {[%clk
00:06:39]} {[%emt 00:01:04]} 41. Bxd3 {[%clk 00:25:59]} {[%emt 00:05:21]} Rxb3
{[%clk 00:36:47]} {[%emt 00:00:21]} 42. axb3 {[%clk 00:24:45]} {[%emt
00:01:43]} Qa5+ {[%clk 00:37:01]} {[%emt 00:00:16]} 43. Kb1 {[%clk 00:23:37]}
{[%emt 00:01:38]} Rxb3+ {[%clk 00:37:25]} {[%emt 00:00:06]} 44. Kc2 {[%clk
00:24:01]} {[%emt 00:00:07]} Qa3 {[%clk 00:27:52]} {[%emt 00:10:03]} 45. Be4
{[%clk 00:17:41]} {[%emt 00:06:50]} Rc3+ {[%clk 00:27:22]} {[%emt 00:01:00]} 46.
Kd2 {[%clk 00:17:48]} {[%emt 00:00:22]} Bb4 {[%clk 00:27:49]} {[%emt 00:00:04]}
0-1

[Event "NJSK 2024 A"]
[Site "Groningen, Netherlands"]
[Date "2024.05.02"]
[Round "6.2"]
[White "Bakija, Alan"]
[Black "Labruyere, Roger"]
[Result "1-0"]
[TimeControl "90min/40moves + 30min + 30sec/move"]
[WhiteElo "2101"]
[BlackElo "2267"]

1. Nf3 {[%clk 01:30:57]} {[%emt 00:00:02]} g6 {[%clk 01:30:52]} {[%emt
00:00:09]} 2. d4 {[%clk 01:31:21]} {[%emt 00:00:06]} Nf6 {[%clk 01:31:18]}
{[%emt 00:00:04]} 3. g3 {[%clk 01:31:40]} {[%emt 00:00:11]} Bg7 {[%clk
01:31:44]} {[%emt 00:00:04]} 4. c4 {[%clk 01:32:06]} {[%emt 00:00:04]} c5
{[%clk 01:32:09]} {[%emt 00:00:04]} 5. Bg2 {[%clk 01:32:09]} {[%emt 00:00:27]}
O-O {[%clk 01:30:24]} {[%emt 00:02:16]} 6. O-O {[%clk 01:32:20]} {[%emt
00:00:18]} cxd4 {[%clk 01:29:19]} {[%emt 00:01:36]} 7. Nxd4 {[%clk 01:32:44]}
{[%emt 00:00:05]} d6 {[%clk 01:29:28]} {[%emt 00:00:21]} 8. Nc3 {[%clk
01:32:33]} {[%emt 00:00:41]} Nbd7 {[%clk 01:29:40]} {[%emt 00:00:19]} 9. b3
{[%clk 01:31:04]} {[%emt 00:01:58]} Nc5 {[%clk 01:28:47]} {[%emt 00:01:23]} 10.
Bb2 {[%clk 01:27:55]} {[%emt 00:03:39]} a6 {[%clk 01:28:32]} {[%emt 00:00:45]}
11. Rc1 {[%clk 01:26:05]} {[%emt 00:02:21]} Rb8 {[%clk 01:24:39]} {[%emt
00:04:23]} 12. Qd2 {[%clk 01:16:53]} {[%emt 00:09:42]} Bd7 {[%clk 01:14:46]}
{[%emt 00:10:23]} 13. Rfd1 {[%clk 01:13:17]} {[%emt 00:04:05]} Qb6 {[%clk
01:09:40]} {[%emt 00:05:37]} 14. e4 {[%clk 00:43:45]} {[%emt 00:30:02]} Bc6
{[%clk 01:05:45]} {[%emt 00:04:25]} 15. Nd5 {[%clk 00:40:41]} {[%emt 00:03:34]}
Bxd5 {[%clk 00:58:48]} {[%emt 00:07:27]} 16. exd5 {[%clk 00:41:02]} {[%emt
00:00:08]} e5 {[%clk 00:57:28]} {[%emt 00:01:50]} 17. dxe6 {[%clk 00:30:40]}
{[%emt 00:10:52]} fxe6 {[%clk 00:57:53]} {[%emt 00:00:05]} 18. b4 {[%clk
00:30:40]} {[%emt 00:00:30]} Ng4 {[%clk 00:26:53]} {[%emt 00:31:30]} 19. bxc5
{[%clk 00:16:42]} {[%emt 00:14:29]} dxc5 {[%clk 00:27:18]} {[%emt 00:00:05]} 20.
f3 {[%clk 00:16:34]} {[%emt 00:00:37]} Bh6 {[%clk 00:24:08]} {[%emt 00:03:41]}
21. f4 {[%clk 00:16:54]} {[%emt 00:00:10]} cxd4 {[%clk 00:21:22]} {[%emt
00:03:16]} 22. Bxd4 {[%clk 00:15:57]} {[%emt 00:01:26]} Qc7 {[%clk 00:20:44]}
{[%emt 00:01:08]} 23. Qe2 {[%clk 00:10:08]} {[%emt 00:06:20]} e5 {[%clk
00:18:33]} {[%emt 00:02:40]} 24. Bd5+ {[%clk 00:07:58]} {[%emt 00:02:41]} Kh8
{[%clk 00:18:41]} {[%emt 00:00:22]} 25. Ba1 {[%clk 00:07:33]} {[%emt 00:00:55]}
Qc5+ {[%clk 00:17:24]} {[%emt 00:01:46]} 26. Kh1 {[%clk 00:07:27]} {[%emt
00:00:36]} Nf2+ {[%clk 00:16:40]} {[%emt 00:01:15]} 27. Kg2 {[%clk 00:07:48]}
{[%emt 00:00:09]} Nxd1 {[%clk 00:17:06]} {[%emt 00:00:03]} 28. Qxe5+ {[%clk
00:08:04]} {[%emt 00:00:14]} 1-0

[Event "NJSK 2024 A"]
[Site "Groningen, Netherlands"]
[Date "2024.05.02"]
[Round "6.3"]
[White "Blom, Rens"]
[Black "Smid, Jelle"]
[Result "0-1"]
[TimeControl "90min/40moves + 30min + 30sec/move"]
[WhiteElo "1963"]
[BlackElo "1917"]

1. c4 {[%clk 01:30:58]} {[%emt 00:00:02]} e6 {[%clk 01:30:54]} {[%emt
00:00:06]} 2. e4 {[%clk 01:31:22]} {[%emt 00:00:06]} c5 {[%clk 01:31:18]}
{[%emt 00:00:05]} 3. Nf3 {[%clk 01:30:54]} {[%emt 00:00:59]} Nc6 {[%clk
01:31:38]} {[%emt 00:00:10]} 4. d4 {[%clk 01:31:16]} {[%emt 00:00:08]} cxd4
{[%clk 01:32:03]} {[%emt 00:00:05]} 5. Nxd4 {[%clk 01:31:42]} {[%emt 00:00:04]}
Nf6 {[%clk 01:32:21]} {[%emt 00:00:12]} 6. Nc3 {[%clk 01:32:03]} {[%emt
00:00:09]} Bb4 {[%clk 01:32:39]} {[%emt 00:00:12]} 7. Nxc6 {[%clk 01:28:00]}
{[%emt 00:04:33]} bxc6 {[%clk 01:32:48]} {[%emt 00:00:20]} 8. e5 {[%clk
01:19:15]} {[%emt 00:09:16]} Ne4 {[%clk 01:32:48]} {[%emt 00:00:29]} 9. Qd4
{[%clk 01:15:46]} {[%emt 00:03:59]} Qa5 {[%clk 01:27:49]} {[%emt 00:05:29]} 10.
Bd2 {[%clk 01:03:27]} {[%emt 00:12:48]} Nxd2 {[%clk 01:27:44]} {[%emt
00:00:35]} 11. Kxd2 {[%clk 01:03:51]} {[%emt 00:00:07]} Rb8 {[%clk 01:18:23]}
{[%emt 00:09:50]} 12. Kc2 {[%clk 01:01:59]} {[%emt 00:02:22]} c5 {[%clk
01:10:55]} {[%emt 00:07:58]} 13. Qe3 {[%clk 00:53:41]} {[%emt 00:08:48]} Bxc3
{[%clk 01:07:48]} {[%emt 00:03:37]} 14. Qxc3 {[%clk 00:54:00]} {[%emt
00:00:11]} Qxc3+ {[%clk 01:08:09]} {[%emt 00:00:09]} 15. Kxc3 {[%clk 00:54:22]}
{[%emt 00:00:09]} Bb7 {[%clk 01:08:26]} {[%emt 00:00:13]} 16. Rd1 {[%clk
00:47:58]} {[%emt 00:06:55]} Bc6 {[%clk 01:08:25]} {[%emt 00:00:30]} 17. Be2
{[%clk 00:43:33]} {[%emt 00:04:54]} Ke7 {[%clk 01:06:40]} {[%emt 00:02:16]} 18.
Rd2 {[%clk 00:41:10]} {[%emt 00:02:53]} f6 {[%clk 01:05:08]} {[%emt 00:02:02]}
19. f4 {[%clk 00:37:44]} {[%emt 00:03:57]} fxe5 {[%clk 01:05:10]} {[%emt
00:00:27]} 20. fxe5 {[%clk 00:38:08]} {[%emt 00:00:06]} Rhf8 {[%clk 01:05:27]}
{[%emt 00:00:13]} 21. Rhd1 {[%clk 00:36:19]} {[%emt 00:02:19]} Rf2 {[%clk
00:58:07]} {[%emt 00:07:50]} 22. Bf3 {[%clk 00:34:45]} {[%emt 00:02:04]} Rxd2
{[%clk 00:58:27]} {[%emt 00:00:09]} 23. Rxd2 {[%clk 00:35:10]} {[%emt
00:00:05]} Bxf3 {[%clk 00:58:45]} {[%emt 00:00:13]} 24. gxf3 {[%clk 00:35:30]}
{[%emt 00:00:10]} Rf8 {[%clk 00:59:07]} {[%emt 00:00:08]} 25. Rd3 {[%clk
00:30:17]} {[%emt 00:05:43]} Rf5 {[%clk 00:58:58]} {[%emt 00:00:39]} 26. Re3
{[%clk 00:30:17]} {[%emt 00:00:31]} Rh5 {[%clk 00:58:20]} {[%emt 00:01:07]} 27.
Re2 {[%clk 00:29:53]} {[%emt 00:00:54]} Rh3 {[%clk 00:57:32]} {[%emt 00:01:17]}
28. Rf2 {[%clk 00:27:29]} {[%emt 00:02:55]} g5 {[%clk 00:56:18]} {[%emt
00:01:43]} 29. Kd3 {[%clk 00:25:37]} {[%emt 00:02:22]} h5 {[%clk 00:54:00]}
{[%emt 00:02:48]} 30. b3 {[%clk 00:24:40]} {[%emt 00:01:27]} Kf7 {[%clk
00:53:15]} {[%emt 00:01:16]} 31. Ke3 {[%clk 00:12:16]} {[%emt 00:12:54]} Kg6
{[%clk 00:49:40]} {[%emt 00:04:05]} 32. Rd2 {[%clk 00:11:04]} {[%emt 00:01:42]}
g4 {[%clk 00:49:48]} {[%emt 00:00:21]} 33. Rxd7 {[%clk 00:11:04]} {[%emt
00:00:31]} Rxf3+ {[%clk 00:50:12]} {[%emt 00:00:06]} 34. Ke4 {[%clk 00:08:59]}
{[%emt 00:02:35]} Rf2 {[%clk 00:48:58]} {[%emt 00:01:44]} 35. Rxa7 {[%clk
00:04:57]} {[%emt 00:04:33]} Rxh2 {[%clk 00:49:18]} {[%emt 00:00:10]} 36. Re7
{[%clk 00:04:59]} {[%emt 00:00:28]} Kg5 {[%clk 00:48:38]} {[%emt 00:01:09]} 37.
Rxe6 {[%clk 00:03:21]} {[%emt 00:02:08]} h4 {[%clk 00:48:38]} {[%emt 00:00:31]}
38. Re8 {[%clk 00:03:21]} {[%emt 00:00:30]} h3 {[%clk 00:48:37]} {[%emt
00:00:30]} 39. Rg8+ {[%clk 00:03:27]} {[%emt 00:00:25]} Kh4 {[%clk 00:48:55]}
{[%emt 00:00:12]} 40. e6 {[%clk 00:02:46]} {[%emt 00:01:11]} Re2+ {[%clk
00:46:45]} {[%emt 00:02:40]} 41. Kf4 {[%clk 00:01:49]} {[%emt 00:01:27]} Rf2+
{[%clk 00:46:51]} {[%emt 00:00:23]} 42. Ke3 {[%clk 00:30:07]} {[%emt 00:02:12]}
Rf1 {[%clk 01:08:43]} {[%emt 00:08:38]} 43. Ke2 {[%clk 00:21:19]} {[%emt
00:09:18]} Rf6 {[%clk 01:08:11]} {[%emt 00:01:03]} 44. Re8 {[%clk 00:21:42]}
{[%emt 00:00:08]} Kg3 {[%clk 01:07:54]} {[%emt 00:00:46]} 45. e7 {[%clk
00:20:10]} {[%emt 00:02:02]} h2 {[%clk 01:06:07]} {[%emt 00:02:16]} 46. Rh8
{[%clk 00:17:14]} {[%emt 00:03:26]} Re6+ {[%clk 01:06:28]} {[%emt 00:00:09]} 47.
Kd3 {[%clk 00:16:08]} {[%emt 00:01:36]} Rxe7 {[%clk 01:06:50]} {[%emt
00:00:09]} 48. a4 {[%clk 00:15:44]} {[%emt 00:00:54]} Kg2 {[%clk 01:07:08]}
{[%emt 00:00:11]} 49. b4 {[%clk 00:16:06]} {[%emt 00:00:09]} h1=Q {[%clk
01:07:23]} {[%emt 00:00:15]} 50. Rxh1 {[%clk 00:16:32]} {[%emt 00:00:04]} Kxh1
{[%clk 01:07:44]} {[%emt 00:00:10]} 51. b5 {[%clk 00:16:15]} {[%emt 00:00:47]}
g3 {[%clk 01:08:09]} {[%emt 00:00:04]} 52. Kd4 {[%emt 00:00:18]} 0-1